[Event "FIDE Womens Candidates 2024"]
[Site "Toronto"]
[Date "2024.04.06"]
[Round "3.1"]
[White "Koneru, Humpy"]
[Black "Tan, Zhongyi"]
[Result "1/2-1/2"]
[ECO "D02"]
[WhiteElo "2546"]
[BlackElo "2521"]
[Annotator "TA"]
[PlyCount "63"]
[EventDate "2024.04.02"]
[EventType "tourn"]
[EventCountry "CAN"]
[SourceTitle "playchess.com"]
[Source "ChessBase"]
[SourceQuality "1"]
[TimeControl "40/5400+30:1800+30"]

{[%evp 15,63,26,28,35,22,40,41,29,39,41,30,33,43,24,35,33,27,36,28,36,13,17,26,14,16,20,15,16,15,16,19,9,11,0,0,0,0,0,0,0,0,0,0,0,0,0,0,0,0,0]} 1. d4 {[%emt 0:00:07]} d5 {[%emt 0:00:07]} 2. Nf3 {[%emt 0:00:17]} Nf6 {[%emt 0:00:45]} 3. g3 {[%emt 0:00:16]} c5 {[%emt 0:02:24]} 4. Bg2 {[%emt 0:01:01]} Nc6 {[%emt 0:00:35]} 5. O-O {[%emt 0:00:17]} cxd4 {[%emt 0:00:08]} 6. Nxd4 {[%emt 0:00:39]} e5 {[%emt 0:00:09]} 7. Nxc6 {[%emt 0:02:02]} bxc6 {[%emt 0:00:05]} 8. c4 {[%emt 0:01:01]} Be6 {[%emt 0:00:07]} 9. Qa4 {[%emt 0:05:46] [#] Threatens to win with cxd5.} Qd7 {[%emt 0:00:14]} 10. Nc3 {[%emt 0:02:25]} Rc8 {[%emt 0:00:10]} 11. cxd5 {[%emt 0:01:58] White is slightly better.} cxd5 {[%emt 0:00:05]} 12. Qxd7+ {[%emt 0:00:17]} Kxd7 {[%emt 0:00:05]} 13. Rd1 {[%emt 0:01:22][%cal Oc1g5]} Bc5 {[%emt 0:00:07]} 14. Nxd5 {[%emt 0:27:40]} (14. Bxd5 Nxd5 15. Nxd5 Bxd5 16. Rxd5+ Ke6 $17) 14... Nxd5 {[%emt 0:00:06]} 15. Bxd5 {[%emt 0:00:40]} Bxd5 {[%emt 0:00:05]} 16. Rxd5+ {[%emt 0:01:32]} Ke6 {[%emt 0:00:07]} 17. Rd1 {[%emt 0:00:41]} Rhd8 {[%emt 0:01:19]} 18. Rxd8 {[%emt 0:08:15]} Rxd8 $11 {[%emt 0:00:10][%mdl 4096] Endgame. KRB-KRB} 19. Bg5 {[%emt 0:00:23]} f6 {[%emt 0:01:08] The position is equal.} 20. Rc1 $1 {[%emt 0:00:30]} Bb6 {[%emt 0:00:32]} 21. Be3 {[%emt 0:00:24]} Bxe3 {[%emt 0:00:10]} 22. fxe3 {[%emt 0:00:07] KR-KR} Rd2 {[%emt 0:00:04][%csl LRb2,LRe2]} 23. Kf2 {[%emt 0:00:56]} Rxb2 {[%emt 0:00:09][%cal Oe6d7]} 24. Rc6+ {[%emt 0:02:40]} Kf5 {[%emt 0:00:25]} 25. Ra6 {[%emt 0:00:34]} Rb7 {[%emt 0:00:08]} 26. Ra4 {[%emt 0:04:23]} h5 {[%emt 0:00:09]} 27. Kf3 {[%emt 0:02:53]} Rc7 {[%emt 0:00:06]} 28. h3 {[%emt 0:02:27]} Rd7 {[%emt 0:00:36]} 29. Ra5 {[%emt 0:03:17]} Rc7 {[%emt 0:00:09]} 30. Ra4 {[%emt 0:00:09]} Rd7 {[%emt 0:00:05]} 31. Ra5 {[%emt 0:00:05]} Rc7 {[%emt 0:00:39]} 32. Ra4 {[%emt 0:00:51] Weighted Error Value: White=0.02 (flawless) /Black=0.00 (flawless) .  OK:         	White=10    	Black=10     Best:        	White=2     	Black=3      Strong:       	White=1     	---} 1/2-1/2

[Event "FIDE Womens Candidates 2024"]
[Site "Toronto"]
[Date "2024.04.09"]
[Round "5.4"]
[White "Koneru, Humpy"]
[Black "Goryachkina, Aleksandra"]
[Result "1/2-1/2"]
[ECO "D27"]
[WhiteElo "2546"]
[BlackElo "2553"]
[Annotator "TA"]
[PlyCount "87"]
[EventDate "2024.04.02"]
[EventType "tourn"]
[EventCountry "CAN"]
[SourceTitle "playchess.com"]
[Source "ChessBase"]
[SourceQuality "1"]
[TimeControl "40/5400+30:1800+30"]

{[%evp 15,87,7,4,0,0,6,1,0,6,12,10,6,7,11,8,0,0,0,0,0,0,-3,0,0,0,0,11,24,22,18,14,0,0,0,0,0,0,0,0,0,0,0,0,0,0,-8,-8,-10,-8,-30,-9,-6,0,-43,-57,-54,-52,-47,-45,-42,-39,-51,-33,-38,-36,-160,-158,-151,-158,-154,0,0,0,0]} 1. d4 {[%emt 0:00:08]} d5 {[%emt 0:00:19]} 2. c4 {[%emt 0:00:14]} e6 {[%emt 0:00:26]} 3. Nf3 {[%emt 0:00:12]} Nf6 {[%emt 0:00:16]} 4. Nc3 {[%emt 0:00:19]} c5 {[%emt 0:00:46]} 5. e3 {[%emt 0:00:54]} dxc4 {[%emt 0:01:29]} 6. Bxc4 {[%emt 0:00:51]} a6 {[%emt 0:01:16]} 7. O-O {[%emt 0:03:06]} b5 {[%emt 0:01:36]} 8. Bb3 {[%emt 0:00:28]} Bb7 {[%emt 0:02:08] [#]} 9. e4 $1 {[%emt 0:08:24]} cxd4 {[%emt 0:01:12]} 10. Nxd4 {[%emt 0:01:44] With the idea e5.} Nc6 {[%emt 0:01:05]} 11. Nxc6 {[%emt 0:09:35]} Qxd1 {[%emt 0:01:04]} 12. Rxd1 {[%emt 0:00:07]} Bxc6 {[%emt 0:00:04]} 13. f3 {[%emt 0:00:36]} Bc5+ {[%emt 0:00:52]} 14. Kf1 {[%emt 0:00:33]} Ke7 {[%emt 0:03:11]} 15. e5 {[%emt 0:06:30]} Nd7 {[%emt 0:01:18]} 16. Bg5+ {[%emt 0:00:39]} Ke8 {[%emt 0:00:59][%cal Oh7h6]} 17. Rac1 {[%emt 0:08:22]} h6 {[%emt 0:00:50]} 18. Bf4 {[%emt 0:02:15]} Ke7 {[%emt 0:15:38]} 19. Bc2 {[%emt 0:11:23]} g5 {[%emt 0:10:08]} 20. Bd2 {[%emt 0:03:15]} a5 {[%emt 0:14:13][%cal Oc5d4]} (20... Nxe5 $2 21. Ne4 Bxe4 22. Bxe4 $16) 21. Be4 {[%emt 0:05:24]} Bxe4 {[%emt 0:08:36]} 22. Nxe4 {[%emt 0:00:06]} Rhc8 {[%emt 0:04:20]} 23. h4 {[%emt 0:20:38]} Bb4 $1 {[%emt 0:01:52]} 24. Be3 {[%emt 0:03:57] a3 would now be deadly.} Nxe5 {[%emt 0:02:43]} 25. Rxc8 {[%emt 0:04:29]} Rxc8 {[%emt 0:00:06]} 26. hxg5 {[%emt 0:00:07] aiming for Bd4.} Nc4 {[%emt 0:03:39][%csl LRb2,LRe3]} 27. Bc1 {[%emt 0:00:28]} hxg5 {[%emt 0:02:44]} 28. Bxg5+ {[%emt 0:03:47]} Kf8 {[%emt 0:02:24][%cal Of7f5]} 29. Rd7 {[%emt 0:00:45]} Kg7 {[%emt 0:04:25][%cal Og7g6] Dodges Bh6+} 30. a3 {[%emt 0:01:30]} Bf8 {[%emt 0:01:39][%cal Og7g6]} 31. Rb7 {[%emt 0:01:41]} Kg6 {[%emt 0:00:54] Threatens to win with ...f5.} 32. Bf6 {[%emt 0:01:12]} (32. Rxb5 $2 f5 33. Bf4 (33. b3 $2 Nxa3 34. Rxa5 fxe4 $19) 33... fxe4 34. fxe4 a4 $19) 32... Ne3+ {[%emt 0:03:17]} 33. Ke2 {[%emt 0:01:21]} Nd5 {[%emt 0:01:13]} 34. Bd4 {[%emt 0:01:02][%cal Og2g3]} Nf4+ {[%emt 0:00:57]} 35. Kf2 {[%emt 0:00:33]} Rc2+ {[%emt 0:01:13]} 36. Ke1 $1 {[%emt 0:01:01]} f5 {[%emt 0:03:08]} 37. Nd2 {[%emt 0:00:31]} Rc1+ {[%emt 0:02:47]} (37... Nxg2+ $6 38. Kd1 Rc8 39. Rxb5 $14) 38. Kf2 {[%emt 0:00:01][%cal Og2g3]} Rd1 {[%emt 0:01:25]} 39. Be3 {[%emt 0:01:10]} Nd5 {[%emt 0:00:01] Strongly threatening ...f4.} 40. f4 {[%emt 0:00:00] [#]} (40. g3 $1 $15) 40... Bc5 $1 $17 {[%emt 0:00:00][%mdl 512]} 41. Ke2 {[%emt 0:13:36]} Nxe3 {[%emt 0:05:09]} (41... Bxe3 $2 {loses.} 42. Kxd1 Nxf4 43. Rxb5 $18) 42. Nb3 {[%emt 0:00:25] [#]} Rd5 {[%emt 0:12:13]} (42... Bxa3 43. bxa3 a4 44. Na5 $16 (44. Kxe3 axb3 45. Rxb5 Rg1 $11)) ({Black should play} 42... Bd6 $1 $17 {[%cal Rd6f4]} 43. Kxe3 a4) 43. Nxc5 $11 {[%emt 0:00:15]} Rxc5 {[%emt 0:00:32]} 44. Kxe3 {[%emt 0:00:14] Weighted Error Value: White=0.09 (flawless) /Black=0.06 (flawless) .  Mistake:       	White=1     	Black=1      Inaccurate:     	White=1     	---        OK:         	White=12    	Black=24     Best:        	White=4     	---        Strong:       	White=1     	Black=1      Brilliant:      	---       	Black=1} 1/2-1/2

[Event "FIDE Womens Candidates 2024"]
[Site "Toronto"]
[Date "2024.04.10"]
[Round "6.3"]
[White "Koneru, Humpy"]
[Black "Lei, Tingjie"]
[Result "0-1"]
[ECO "E97"]
[WhiteElo "2546"]
[BlackElo "2550"]
[Annotator "TA"]
[PlyCount "96"]
[EventDate "2024.04.02"]
[EventType "tourn"]
[EventCountry "CAN"]
[SourceTitle "playchess.com"]
[Source "ChessBase"]
[SourceQuality "1"]
[TimeControl "40/5400+30:1800+30"]

{[%evp 17,96,29,57,47,47,45,42,-4,-7,0,19,0,4,10,15,0,42,0,0,0,0,0,0,0,0,0,0,-22,0,0,0,0,13,0,0,0,6,6,0,0,6,0,3,0,0,0,0,0,0,0,0,-34,-33,-32,-24,-78,-77,-143,-146,-177,-139,-256,-247,-250,-248,-357,-353,-341,-289,-714,-602,-1076,-1044,-1036,-980,-1583,-1758,-4829,-4785,-5206,-5089]} 1. d4 {[%emt 0:00:05]} d6 {[%emt 0:00:14]} 2. Nf3 {[%emt 0:02:57]} Nf6 {[%emt 0:00:16]} 3. c4 {[%emt 0:00:41]} g6 {[%emt 0:00:29]} 4. Nc3 {[%emt 0:00:37]} Bg7 {[%emt 0:00:11]} 5. e4 {[%emt 0:01:49]} O-O {[%emt 0:00:07]} 6. Be2 {[%emt 0:00:14]} e5 {[%emt 0:00:12]} 7. O-O {[%emt 0:00:24]} Nc6 {[%emt 0:00:29]} 8. d5 {[%emt 0:01:13]} Ne7 {[%emt 0:00:12]} 9. Kh1 {[%emt 0:01:04]} Kh8 {[%emt 0:07:16]} 10. Ne1 {[%emt 0:12:55]} Nd7 {[%emt 0:02:39]} 11. Nd3 {[%emt 0:01:26]} f5 {[%emt 0:00:39]} 12. f4 {[%emt 0:04:08]} (12. f3 $14 {deserves consideration.}) 12... exf4 $11 {[%emt 0:12:48]} 13. Bxf4 {[%emt 0:02:23]} h6 {[%emt 0:04:12]} 14. c5 {[%emt 0:19:03]} fxe4 {[%emt 0:14:27]} 15. cxd6 {[%emt 0:01:08]} cxd6 {[%emt 0:00:25]} 16. Nxe4 {[%emt 0:00:51]} Ne5 {[%emt 0:10:04]} 17. Bxe5 {[%emt 0:18:20]} Rxf1+ {[%emt 0:00:08]} 18. Bxf1 {[%emt 0:00:45]} dxe5 {[%emt 0:00:06]} 19. d6 {[%emt 0:02:40]} Nf5 {[%emt 0:01:18]} 20. Ndc5 {[%emt 0:05:50] Excellent horsemanship.} Nd4 {[%emt 0:03:35]} 21. Bd3 {[%emt 0:11:18]} b6 {[%emt 0:07:10]} 22. Nb3 {[%emt 0:00:30][%cal Bc5b3,Bb3d2,Bd2c4,Bc4e3][%mdl 32]} Bf5 {[%emt 0:00:31]} 23. Rc1 {[%emt 0:03:04]} Rb8 {[%emt 0:08:35]} 24. Nbd2 {[%emt 0:02:00]} Rc8 {[%emt 0:06:25] Inhibits Rc7.} 25. Rc3 {[%emt 0:01:14]} Bf8 {[%emt 0:03:33]} 26. Nc4 {[%emt 0:02:51]} Bg7 {[%emt 0:01:54]} 27. Ne3 {[%emt 0:02:03]} Rxc3 {[%emt 0:06:59]} 28. bxc3 {[%emt 0:00:04]} Bxe4 $1 {[%emt 0:00:08]} 29. Bxe4 {[%emt 0:00:06]} Nb5 {[%emt 0:00:07] Black is weak on the light squares} 30. Qd3 {[%emt 0:03:04]} Nxd6 {[%emt 0:00:55][%cal Od8h4]} 31. Bxg6 {[%emt 0:00:16]} Qf6 {[%emt 0:01:55]} 32. h3 {[%emt 0:00:22]} Bf8 {[%emt 0:04:14]} 33. Nd5 {[%emt 0:00:47]} Qf2 {[%emt 0:01:42]} 34. Qe3 {[%emt 0:00:28]} Qxe3 {[%emt 0:01:16]} 35. Nxe3 $15 {[%emt 0:00:03][%mdl 4096] Endgame. KBN-KBN} e4 {[%emt 0:00:22]} 36. Nf5 {[%emt 0:00:57] [#]} (36. Bh5 $11 {keeps the balance.}) 36... Nb5 $1 $17 {[%emt 0:00:17]} 37. c4 {[%emt 0:00:33]} (37. Kg1 $142) 37... Nc3 {[%emt 0:00:13][%cal Oa7a5]} 38. Kg1 {[%emt 0:00:31]} Nxa2 {[%emt 0:01:44]} 39. Kf2 {[%emt 0:01:49]} (39. Ng3 $17 {was necessary.}) 39... a5 $19 {[%emt 0:01:20]} 40. Ng3 {[%emt 0:00:00]} a4 {[%emt 0:00:00] [#] aiming for ...a3.} ({Stronger than} 40... Bc5+ 41. Ke1 $11) 41. Nxe4 {[%emt 0:10:13]} (41. Ne2 {might work better.}) 41... a3 {[%emt 0:02:31]} 42. Nd2 {[%emt 0:01:14]} Kg7 {[%emt 0:06:54]} 43. Bb1 $2 {[%emt 0:02:41]} (43. Bc2) 43... Nc3 {[%emt 0:00:33] Black is clearly winning.} 44. Bc2 {[%emt 0:04:59]} a2 {[%emt 0:00:05]} 45. Nb3 {[%emt 0:00:04]} Ba3 {[%emt 0:04:40] Hoping for ...Bb2.} 46. Ke3 {[%emt 0:01:31]} Bb2 {[%emt 0:00:06]} 47. c5 {[%emt 0:02:02]} bxc5 {[%emt 0:01:54] And now ...c4 would win.} ({Weaker is} 47... a1=B 48. cxb6 Nd5+ 49. Kf3 Nxb6 50. Be4 $17) 48. Kd3 {[%emt 0:00:06]} Nb5 {[%emt 0:01:28] Weighted Error Value: White=0.77/Black=0.06 (flawless) .  Mistake:       	White=6     	---        Inaccurate:     	White=3     	Black=1      OK:         	White=11    	Black=20     Best:        	White=1     	Black=2      Strong:       	---       	Black=2} (48... a1=B $2 49. Nxc5 Nd5 50. Ke4 $19) 0-1

[Event "FIDE Womens Candidates 2024"]
[Site "Toronto"]
[Date "2024.04.13"]
[Round "8.2"]
[White "Koneru, Humpy"]
[Black "Vaishali, Rameshbabu"]
[Result "1-0"]
[ECO "D97"]
[WhiteElo "2546"]
[BlackElo "2475"]
[Annotator "TA"]
[PlyCount "125"]
[EventDate "2024.04.02"]
[EventType "tourn"]
[EventCountry "CAN"]
[SourceTitle "playchess.com"]
[Source "ChessBase"]
[SourceQuality "1"]
[TimeControl "40/5400+30:1800+30"]

{[%evp 42,125,194,178,181,158,162,137,164,158,147,64,81,73,84,82,77,67,39,61,65,56,104,47,95,92,87,83,95,69,99,68,68,17,18,0,0,0,0,0,12,0,0,0,39,0,0,0,0,0,0,-8,-8,-8,-8,-12,-8,-8,0,-8,10,0,0,0,0,0,0,0,0,0,168,178,189,181,549,531,835,718,1004,1030,1970,1725,5093,4618,29952,6071]} 1. d4 {[%emt 0:00:05]} Nf6 {[%emt 0:00:20]} 2. c4 {[%emt 0:00:11]} g6 {[%emt 0:00:04]} 3. Nc3 {[%emt 0:00:23]} d5 {[%emt 0:00:06]} 4. Qb3 {[%emt 0:00:20]} dxc4 {[%emt 0:00:27]} 5. Qxc4 {[%emt 0:00:08]} Bg7 {[%emt 0:01:30]} 6. e4 {[%emt 0:04:03]} O-O {[%emt 0:01:42]} 7. Bf4 {[%emt 0:00:13]} c6 {[%emt 0:04:40]} 8. Nf3 {[%emt 0:02:32]} Bg4 {[%emt 0:10:35]} 9. Be2 {[%emt 0:03:55] D97: Grünfeld: Russian System: 7 e4, replies other than 7...Bg4.} Nfd7 {[%emt 0:03:43]} 10. Rd1 {[%emt 0:09:20]} Na6 {[%emt 0:08:30]} 11. O-O {[%emt 0:06:01]} Bxf3 $146 {[%emt 0:14:32]} ({Predecessor:} 11... Qb6 12. Be3 {½-½ Luft,A (2325)-Zagorskis,D (2530) Wuerzburg op 12th 1996 (3.3)}) 12. Bxf3 {[%emt 0:05:07]} e5 {[%emt 0:00:24]} 13. dxe5 {[%emt 0:02:18]} Qe8 {[%emt 0:00:27]} 14. e6 {[%emt 0:05:26]} Nb6 {[%emt 0:05:04]} 15. Qb3 {[%emt 0:06:45]} Nc5 {[%emt 0:04:27]} 16. Qc2 {[%emt 0:01:23]} Nxe6 {[%emt 0:13:29]} 17. Bd6 {[%emt 0:02:35]} Nd4 {[%emt 0:02:10]} 18. Qd3 {[%emt 0:00:42]} Nd7 {[%emt 0:01:56]} 19. Qe3 {[%emt 0:15:33]} c5 {[%emt 0:03:55]} 20. Be2 {[%emt 0:14:35]} Qe6 {[%emt 0:02:18]} 21. Bxf8 {[%emt 0:00:09]} Rxf8 {[%emt 0:00:05]} 22. b3 {[%emt 0:02:04]} a6 {[%emt 0:03:21]} 23. Bc4 {[%emt 0:00:57]} Qe7 {[%emt 0:01:47]} 24. Ne2 {[%emt 0:06:24]} b5 {[%emt 0:05:58]} 25. Bd3 {[%emt 0:03:40]} Nb6 {[%emt 0:02:29] [#]} 26. b4 {[%emt 0:05:13]} (26. Kh1 $1 $16) 26... Na4 $14 {[%emt 0:00:45]} 27. bxc5 {[%emt 0:00:55]} Qxc5 {[%emt 0:00:03]} 28. Rc1 {[%emt 0:01:36]} Nxe2+ {[%emt 0:01:24]} 29. Bxe2 {[%emt 0:01:25]} Qxe3 {[%emt 0:01:39]} 30. fxe3 {[%emt 0:00:03]} Nc3 {[%emt 0:00:09]} 31. Rc2 {[%emt 0:00:04]} Be5 {[%emt 0:03:36]} (31... Ra8 $14) 32. Rd2 {[%emt 0:01:29]} ({White should try} 32. Rfc1 $16 Rc8 33. Rd1) 32... Rc8 {[%emt 0:01:59]} (32... Ra8 $14 {deserves consideration.}) 33. Bd1 $16 {[%emt 0:00:16]} Rc7 {[%emt 0:02:08]} 34. Rd8+ {[%emt 0:00:49]} Kg7 {[%emt 0:00:02]} 35. Re8 {[%emt 0:00:16]} Bd6 {[%emt 0:00:54]} 36. Bb3 {[%emt 0:00:39]} Bc5 {[%emt 0:00:20]} 37. Rf3 {[%emt 0:00:34]} (37. g4 $14) 37... a5 $11 {[%emt 0:00:21]} 38. Kf1 {[%emt 0:00:25]} a4 {[%emt 0:00:55]} 39. Bd5 {[%emt 0:00:05]} b4 {[%emt 0:00:32]} 40. Ra8 {[%emt 0:00:00]} Bd6 {[%emt 0:00:00]} 41. Ra6 {[%emt 0:12:17]} Be5 {[%emt 0:08:56]} 42. g4 {[%emt 0:09:28]} Bxh2 {[%emt 0:08:39]} 43. Raf6 {[%emt 0:07:18]} Nxd5 $1 {[%emt 0:02:00]} 44. exd5 {[%emt 0:00:02]} Rb7 {[%emt 0:01:20]} 45. Kg2 {[%emt 0:01:16]} Be5 {[%emt 0:00:17]} 46. Ra6 {[%emt 0:01:46]} b3 {[%emt 0:02:32]} 47. axb3 {[%emt 0:00:10]} axb3 {[%emt 0:00:02]} 48. Rf1 {[%emt 0:00:09]} b2 {[%emt 0:05:30]} 49. Rb1 {[%emt 0:00:02]} Kf8 {[%emt 0:04:30]} 50. Kf3 {[%emt 0:01:32]} Ke7 {[%emt 0:00:38]} 51. g5 {[%emt 0:01:16]} Rb4 {[%emt 0:01:58]} 52. Ra7+ {[%emt 0:01:16]} Ke8 {[%emt 0:00:35]} 53. e4 {[%emt 0:01:06]} Kf8 {[%emt 0:00:40]} 54. Ra3 {[%emt 0:00:34]} Kg7 {[%emt 0:00:20]} 55. Rd3 {[%emt 0:00:23]} Rc4 $2 {[%emt 0:00:34]} (55... Rb7 $11 {and Black is okay.}) 56. d6 $18 {[%emt 0:00:32]} Rc8 {[%emt 0:00:39]} ({Wrong is} 56... Rc1 $2 57. Rxb2 (57. Rd1 Rxd1 58. Rxd1 Bxd6 $17) 57... Rg1 (57... Bxb2 $2 {too greedy.} 58. d7 $18) 58. Rg2 $18) 57. Rd5 {[%emt 0:00:30]} Bc3 $2 {[%emt 0:00:31]} (57... f6 {is tougher.}) 58. e5 $18 {[%emt 0:00:37]} Kf8 {[%emt 0:00:30]} 59. Ke4 {[%emt 0:00:22]} Ra8 {[%emt 0:00:27]} 60. Kd3 {[%emt 0:00:35]} Ra3 {[%emt 0:00:30]} 61. Kc2 {[%emt 0:00:24]} Ke8 {[%emt 0:00:18]} 62. Rd3 {[%emt 0:00:30]} Bb4 {[%emt 0:00:10]} 63. Rxb2 {[%emt 0:00:07]} 1-0

[Event "FIDE Womens Candidates 2024"]
[Site "Toronto"]
[Date "2024.04.14"]
[Round "9.2"]
[White "Koneru, Humpy"]
[Black "Lagno, Kateryna"]
[Result "1/2-1/2"]
[ECO "D38"]
[WhiteElo "2546"]
[BlackElo "2542"]
[Annotator "TA"]
[PlyCount "114"]
[EventDate "2024.04.02"]
[EventType "tourn"]
[EventCountry "CAN"]
[SourceTitle "playchess.com"]
[Source "ChessBase"]
[SourceQuality "1"]
[TimeControl "40/5400+30:1800+30"]

{[%evp 51,114,22,15,18,18,15,10,23,17,13,10,10,32,8,25,0,0,0,70,0,24,-118,-108,-107,-107,-107,-107,-108,-108,-108,-108,-108,-108,-108,-108,-108,-108,-108,-108,-108,-108,-108,-32,-32,0,0,0,0,0,0,0,0,0,0,0,0,0,0,0,0,0,0,0,0,0]} 1. d4 {[%emt 0:00:05]} Nf6 {[%emt 0:00:11]} 2. c4 {[%emt 0:00:14]} e6 {[%emt 0:00:08]} 3. Nf3 {[%emt 0:00:18]} d5 {[%emt 0:00:13]} 4. Nc3 {[%emt 0:00:15]} Bb4 {[%emt 0:00:12]} 5. a3 {[%emt 0:03:03]} Bxc3+ {[%emt 0:00:43]} 6. bxc3 {[%emt 0:00:06]} c5 {[%emt 0:01:00]} 7. a4 {[%emt 0:02:48] D38: Queen's Gambit Declined: Ragozin Defence (4 Nf3 Bb4).} Ne4 {[%emt 0:22:20]} 8. e3 {[%emt 0:04:11]} Nxc3 {[%emt 0:18:35]} 9. Qc2 {[%emt 0:00:47]} Ne4 $146 {[%emt 0:00:04]} ({Predecessor:} 9... cxd4 10. Nxd4 Ne4 11. cxd5 exd5 12. Bb5+ Bd7 13. Ba3 Qa5+ 14. Ke2 Nc6 15. Bxc6 bxc6 {½-½ Tabatabaei,M (2623)-Yu,Y (2713) Berlin FIDE GP 3 Pool-D 2022 (5)}) 10. cxd5 {[%emt 0:04:13]} exd5 {[%emt 0:01:09]} 11. Bb5+ {[%emt 0:06:08]} Nc6 {[%emt 0:16:53]} 12. dxc5 {[%emt 0:05:02]} O-O {[%emt 0:00:54]} 13. O-O {[%emt 0:01:03]} Nb4 {[%emt 0:07:54]} 14. Qb1 {[%emt 0:30:49]} a6 {[%emt 0:00:04]} 15. Qxb4 {[%emt 0:11:57]} axb5 {[%emt 0:00:04]} 16. Qxb5 {[%emt 0:01:04]} Ra5 {[%emt 0:00:40]} 17. Qb4 {[%emt 0:03:13]} Rxc5 {[%emt 0:01:21]} 18. Ba3 {[%emt 0:01:18]} Re8 {[%emt 0:01:01]} 19. Rfc1 {[%emt 0:01:30]} b6 {[%emt 0:05:36]} 20. Qd4 {[%emt 0:00:39]} Ra5 {[%emt 0:01:12]} 21. Bb4 {[%emt 0:05:22]} Ra6 {[%emt 0:01:57]} 22. Ne5 {[%emt 0:01:55]} Bb7 {[%emt 0:04:14]} 23. f3 {[%emt 0:02:45]} Ng5 {[%emt 0:00:36]} 24. Qf4 {[%emt 0:01:22]} f6 {[%emt 0:03:46]} 25. Nc6 {[%emt 0:04:11]} Bxc6 {[%emt 0:00:20]} 26. Rxc6 {[%emt 0:00:06]} Qa8 {[%emt 0:00:07]} 27. Rac1 {[%emt 0:02:39]} Rxa4 {[%emt 0:01:00]} 28. Qf5 {[%emt 0:05:59]} Ra1 {[%emt 0:01:43]} (28... Rxb4 $2 {too greedy.} 29. Rc8 $18) 29. Qxd5+ {[%emt 0:00:03]} Nf7 {[%emt 0:00:18]} 30. Qb3 {[%emt 0:01:10]} Qxc6 {[%emt 0:01:12]} 31. Rxa1 {[%emt 0:00:03]} Rc8 {[%emt 0:03:13]} 32. Rd1 {[%emt 0:01:18]} b5 {[%emt 0:02:06]} (32... Qc4 {simplifies} 33. Rb1 Qxb3 34. Rxb3 Rc1+) 33. Rd4 {[%emt 0:00:25]} (33. h3 {simplifies} Qc4 34. Qxc4 Rxc4 35. Rb1) 33... Qc1+ {[%emt 0:00:17]} 34. Kf2 {[%emt 0:00:49]} h5 {[%emt 0:01:32]} ({Black should play} 34... Qc2+ $1 $11 35. Qxc2 Rxc2+ 36. Kg3 h5) 35. Rd2 {[%emt 0:00:28]} (35. Bd2 $1 $14 Qc7 36. h3) 35... Rc4 {[%emt 0:00:27]} 36. Rd1 {[%emt 0:00:36] [#]} (36. Ra2 $11 {keeps the balance.} Rc7 37. Bd2) 36... Rc2+ $1 $17 {[%emt 0:03:27]} 37. Ke1 {[%emt 0:00:02]} Qb2 {[%emt 0:00:02]} 38. Qxb2 {[%emt 0:00:41]} Rxb2 {[%emt 0:00:01]} 39. Bd2 {[%emt 0:00:21]} Ne5 {[%emt 0:00:14]} 40. Bc3 {[%emt 0:00:00]} Rxg2 {[%emt 0:00:00]} 41. Rd8+ {[%emt 0:05:24]} Kf7 {[%emt 0:01:15]} 42. Bxe5 {[%emt 0:00:37]} fxe5 {[%emt 0:00:06]} 43. Rd5 {[%emt 0:01:04]} b4 {[%emt 0:04:19]} ({Don't play} 43... Rxh2 $6 44. Rxe5 b4 45. Rb5 $11) 44. Rb5 {[%emt 0:00:12]} Rxh2 {[%emt 0:20:13]} 45. Rxb4 {[%emt 0:00:08]} Kf6 {[%emt 0:00:23]} 46. Kf1 {[%emt 0:02:41]} g5 {[%emt 0:02:42]} (46... Ra2 $17) 47. Rb8 {[%emt 0:16:18]} g4 {[%emt 0:04:40]} 48. fxg4 {[%emt 0:00:26]} hxg4 {[%emt 0:00:01]} 49. Rf8+ {[%emt 0:00:12]} Ke6 {[%emt 0:02:06]} 50. e4 $1 {[%emt 0:02:40]} Rh6 {[%emt 0:00:03]} 51. Rg8 {[%emt 0:01:27]} Rf6+ {[%emt 0:00:14]} 52. Ke2 $1 {[%emt 0:00:08]} Rf4 {[%emt 0:00:04]} 53. Ke3 {[%emt 0:00:57]} Kf6 {[%emt 0:00:24]} 54. Kd3 {[%emt 0:00:12]} Kf7 {[%emt 0:01:43]} 55. Rg5 {[%emt 0:00:07]} Ke6 {[%emt 0:00:25]} 56. Rg6+ {[%emt 0:01:11]} Ke7 {[%emt 0:00:22]} 57. Ke3 {[%emt 0:00:22]} Kd7 {[%emt 0:00:33]} 1/2-1/2